bitfinex-derivatives/quotes_BNBF0:USTF0_20260221
["timestamp","ask_amount","ask_price","bid_price","bid_amount"]
[1771641101965,1.19324036,628.45,627.77,0.31860951]
[1771641102261,1.19324036,628.45,627.78,0.31860951]
[1771641102462,1.19324036,628.45,627.79,0.31860951]
[1771641102665,1.19324036,628.45,627.8,0.31860951]
[1771641102866,1.19324036,628.45,627.81,0.31860951]
[1771641103065,1.19324036,628.45,627.82,0.31860951]
[1771641103264,1.19324036,628.45,627.83,0.31860951]
[1771641103463,1.19324036,628.45,627.84,0.31860951]
[1771641103765,1.19324036,628.45,627.85,0.31860951]
[1771641104065,1.19324036,628.45,627.86,0.31860951]
[1771641104263,1.19324036,628.45,627.87,0.31860951]
[1771641104467,1.19324036,628.46,627.88,0.31860951]
[1771641104661,1.19324036,628.46,627.67,1.19285972]
[1771641104662,1.19324036,628.46,627.89,0.31860951]
[1771641104861,1.19324036,628.46,627.9,0.31860951]
[1771641105065,1.19324036,628.46,627.91,0.31860951]
[1771641105263,1.19324036,628.46,627.92,0.31860951]
[1771641105463,1.19324036,628.44,627.93,0.31860951]
[1771641105765,1.19324036,628.44,627.94,0.31860951]
[1771641105962,1.19324036,628.44,627.95,0.31860951]
[1771641106164,1.19324036,628.44,627.96,0.31860951]
[1771641106362,1.19324036,628.44,627.65,1.19285972]
[1771641106363,1.19324036,628.45,627.97,0.31860951]
[1771641106563,1.19324036,628.45,627.98,0.31860951]
[1771641106764,1.19324036,628.4,627.99,0.31860951]
[1771641106965,1.19324036,628.4,628.0,0.31860951]
[1771641107166,1.19324036,628.4,628.01,0.31860951]
[1771641107363,1.19324036,628.4,627.61,1.19285972]
[1771641107364,1.19324036,628.4,628.02,0.31860951]
[1771641107567,1.19324036,628.4,628.03,0.31860951]
[1771641107765,1.19324036,628.4,628.04,0.31860951]
[1771641107964,1.19324036,628.4,628.05,0.31860951]
[1771641108164,1.19324036,628.4,628.06,0.31860951]
[1771641108368,1.19324036,628.4,628.07,0.31860951]
[1771641108567,1.19324036,628.4,628.08,0.31860951]
[1771641108768,1.19324036,628.4,628.09,0.31860951]
[1771641108969,1.19324036,628.4,628.1,0.31860951]
[1771641109170,1.19324036,628.4,628.11,0.31860951]
[1771641109467,1.19324036,628.4,628.12,0.31860951]
[1771641109668,1.19324036,628.4,628.13,0.31860951]
[1771641109870,1.19324036,628.4,628.14,0.31860951]
[1771641110069,1.19324036,628.4,627.61,1.19285972]
[1771641110070,1.19324036,628.4,628.15,0.31860951]
[1771641110270,1.19324036,628.4,628.16,0.31860951]
[1771641110571,1.19324036,628.4,628.17,0.31860951]
[1771641110771,1.19324036,628.4,628.18,0.31860951]
[1771641110967,1.19324036,628.4,628.19,0.31860951]
[1771641111168,1.19324036,628.4,628.2,0.31860951]
[1771641111371,1.19324036,628.4,627.62,1.19285972]
[1771641111571,1.19324036,628.4,627.63,0.31863049]
[1771641111867,1.19324036,628.4,627.64,0.31863049]
[1771641112070,1.19324036,628.4,627.65,0.31863049]
[1771641112370,1.19324036,628.4,627.66,0.31863049]
[1771641112568,1.19324036,628.4,627.67,0.31863049]
[1771641112870,1.19324036,628.4,627.68,0.31863049]
[1771641113170,1.19324036,628.4,627.69,0.31863049]
[1771641113371,1.19324036,628.39,627.7,0.31863049]
[1771641113670,1.19324036,628.39,627.71,0.31863049]
[1771641113970,1.19324036,628.39,627.72,0.31863049]
[1771641114165,1.19324036,628.39,627.73,0.31863049]
[1771641114371,1.19324036,628.39,627.74,0.31863049]
[1771641114566,1.19324036,628.39,627.75,0.31863049]
[1771641114769,1.19324036,628.39,627.76,0.31863049]
[1771641114966,1.19324036,628.39,627.77,0.31863049]
[1771641115172,1.19324036,628.39,627.78,0.31863049]
[1771641115369,1.19324036,628.39,627.79,0.31863049]
[1771641115672,1.19324036,628.36,627.8,0.31863049]
[1771641115872,1.19324036,628.36,627.81,0.31863049]
[1771641116070,1.19324036,628.36,627.82,0.31863049]
[1771641116269,1.19324036,628.36,627.6,1.19285972]
[1771641116270,1.19324036,628.36,627.83,0.31863049]
[1771641116470,1.19324036,628.36,627.84,0.31863049]
[1771641116668,1.19324036,628.36,627.85,0.31863049]
[1771641116874,1.19324036,628.36,627.86,0.31863049]
[1771641117069,1.19324036,628.36,627.87,0.31863049]
[1771641117268,1.19324036,628.36,627.88,0.31863049]
[1771641117468,1.19324036,628.36,627.89,0.31863049]
[1771641117671,1.19324036,628.36,627.9,0.31863049]
[1771641117872,1.19324036,628.36,627.91,0.31863049]
[1771641118069,1.19324036,628.36,627.92,0.31863049]
[1771641118273,1.19324036,628.36,627.93,0.31863049]
[1771641118472,1.19324036,628.35,627.94,0.31863049]
[1771641118672,1.19324036,628.35,627.95,0.31863049]
[1771641118870,1.19324036,628.35,627.96,0.31863049]
[1771641119172,1.19324036,628.35,627.97,0.31863049]
[1771641119372,1.19324036,628.35,627.98,0.31863049]
[1771641119570,1.19324036,628.35,627.99,0.31863049]
[1771641119770,1.19324036,628.35,628.0,0.31863049]
[1771641119970,1.19324036,628.35,628.01,0.31863049]
[1771641120169,1.19324036,628.36,628.02,0.31863049]
[1771641120470,1.19324036,628.36,628.03,0.31863049]
[1771641120768,1.19324036,628.36,628.04,0.31863049]
[1771641120969,1.19324036,628.36,628.05,0.31863049]
[1771641121274,1.19324036,628.35,628.06,0.31863049]
[1771641121473,1.19324036,628.35,628.07,0.31863049]
[1771641121773,1.19324036,628.35,628.08,0.31863049]
[1771641121968,1.19324036,628.35,628.09,0.31863049]
[1771641122173,1.19324036,628.35,628.1,0.31863049]
[1771641122374,1.19324036,628.35,628.11,0.31863049]
[1771641122575,1.19324036,628.35,628.12,0.31863049]
[1771641122772,1.19324036,628.35,628.13,0.31863049]
[1771641122972,1.19324036,628.35,628.14,0.31863049]
[1771641123174,1.19324036,628.36,628.15,0.31863049]
[1771641123478,1.19324036,628.42,628.16,0.31863049]
[1771641123674,1.19324036,628.42,628.17,0.31863049]
[1771641123878,1.19324036,628.42,628.18,0.31863049]
[1771641124077,1.19324036,628.42,628.19,0.31863049]
[1771641124273,1.19324036,628.42,628.2,0.31863049]
[1771641124473,1.19324036,628.41,628.21,0.31863049]
[1771641124677,1.19324036,628.41,628.22,0.31863049]
[1771641124879,1.19324036,628.41,628.23,0.31863049]
[1771641125074,1.19324036,628.41,628.24,0.31863049]
[1771641125273,1.19324036,628.41,628.25,0.31863049]
[1771641125474,1.19324036,628.45,628.26,0.31863049]
[1771641125674,1.19324036,628.45,628.27,0.31863049]
[1771641125981,1.19324036,628.45,628.28,0.31863049]
[1771641126176,1.19324036,628.45,628.29,0.31863049]
[1771641126380,1.19324036,628.44,628.3,0.31863049]
[1771641126579,1.19324036,628.44,628.31,0.31863049]
[1771641126776,1.19324036,628.44,628.32,0.31863049]
[1771641126980,1.19324036,628.44,628.33,0.31863049]
[1771641127280,1.19324036,628.44,627.79,1.19285972]
[1771641127281,1.19324036,628.48,628.34,0.31863049]
[1771641127478,1.19324036,628.53,628.35,0.31863049]
[1771641127680,1.19324036,628.53,628.36,0.31863049]
[1771641127876,1.19324036,628.53,627.89,1.19285972]
[1771641127877,1.19324036,628.53,628.37,0.31863049]
[1771641128076,1.19324036,628.53,628.38,0.31863049]
[1771641128278,1.19324036,628.54,628.39,0.31863049]
[1771641128477,1.19324036,628.53,628.4,0.31863049]
[1771641128779,1.19324036,628.53,628.41,0.31863049]
[1771641128981,1.19324036,628.53,628.42,0.31863049]
[1771641129183,1.19324036,628.54,628.43,0.31863049]
[1771641129381,1.19324036,628.54,628.44,0.31863049]
[1771641129581,1.19324036,628.54,628.45,0.31863049]
[1771641129779,1.19324036,628.54,627.89,1.19285972]
[1771641129979,1.19324036,628.54,627.9,0.31854177]
[1771641130177,1.19324036,628.54,627.91,0.31854177]
[1771641130476,1.19324036,628.54,627.92,0.31854177]
[1771641130782,1.19324036,628.54,627.93,0.31854177]
[1771641130983,1.19324036,628.54,627.94,0.31854177]
[1771641131183,1.19324036,628.54,627.95,0.31854177]
[1771641131479,1.19324036,628.54,627.96,0.31854177]
[1771641131682,1.19324036,628.54,627.97,0.31854177]
[1771641131982,1.19324036,628.54,627.98,0.31854177]
[1771641132183,1.19324036,628.55,627.99,0.31854177]
[1771641132379,1.19324036,628.54,628.0,0.31854177]
[1771641132582,1.19324036,628.54,628.01,0.31854177]
[1771641132780,1.19324036,628.54,628.02,0.31854177]
[1771641132979,1.19324036,628.54,628.03,0.31854177]
[1771641133180,1.19324036,628.53,628.04,0.31854177]
[1771641133381,0.27703146,628.68,628.05,0.31854177]
[1771641133382,1.19324036,628.48,628.05,0.31854177]
[1771641133581,1.19324036,628.48,628.06,0.31854177]
[1771641133781,1.19324036,628.46,628.07,0.31854177]
[1771641134081,1.19324036,628.46,627.8,1.19285972]
[1771641134082,1.19324036,628.42,628.08,0.31854177]
[1771641134281,1.19324036,628.42,627.76,1.19285972]
[1771641134282,1.19324036,628.42,628.09,0.31854177]
[1771641134486,1.19324036,628.42,628.1,0.31854177]
[1771641134782,1.19324036,628.42,628.11,0.31854177]
[1771641134982,1.19324036,628.42,628.12,0.31854177]
[1771641135185,1.19324036,628.42,628.13,0.31854177]
[1771641135381,1.19324036,628.42,628.14,0.31854177]
[1771641135585,1.19324036,628.42,628.15,0.31854177]
[1771641135786,1.19324036,628.41,628.16,0.31854177]
[1771641135982,1.19324036,628.42,628.17,0.31854177]
[1771641136184,1.19324036,628.41,628.18,0.31854177]
[1771641136488,1.19324036,628.41,628.19,0.31854177]
[1771641136782,1.19324036,628.41,628.2,0.31854177]
[1771641136987,1.19324036,628.41,628.21,0.31854177]
[1771641137287,1.19324036,628.41,628.22,0.31854177]
[1771641137582,1.19324036,628.41,628.23,0.31854177]
[1771641137783,1.19324036,628.41,628.24,0.31854177]
[1771641138086,1.19324036,628.41,628.25,0.31854177]
[1771641138283,1.19324036,628.41,628.26,0.31854177]
[1771641138482,1.19324036,628.41,628.27,0.31854177]
[1771641138684,1.19324036,628.41,628.28,0.31854177]
[1771641138883,1.19324036,628.41,628.29,0.31854177]
[1771641139086,1.19324036,628.41,628.3,0.31854177]
[1771641139283,1.19324036,628.41,628.31,0.31854177]
[1771641139487,1.19324036,628.41,628.32,0.31854177]
[1771641139784,1.19324036,628.41,628.33,0.31854177]
[1771641139987,1.19324036,628.41,627.76,1.19285972]
[1771641140188,1.19324036,628.41,627.77,0.31860199]
[1771641140388,1.19324036,628.41,627.78,0.31860199]
[1771641140585,1.19324036,628.41,627.79,0.31860199]
[1771641140784,1.19324036,628.41,627.8,0.31860199]
[1771641140985,1.19324036,628.41,627.81,0.31860199]
[1771641141190,1.19324036,628.41,627.82,0.31860199]
[1771641141486,1.19324036,628.41,627.83,0.31860199]
[1771641141786,1.19324036,628.41,627.84,0.31860199]
[1771641141989,1.19324036,628.41,627.85,0.31860199]
[1771641142188,1.19324036,628.41,627.86,0.31860199]
[1771641142385,1.19324036,628.41,627.87,0.31860199]
[1771641142588,1.19324036,628.41,627.88,0.31860199]
[1771641142788,1.19324036,628.41,627.89,0.31860199]
[1771641142984,1.19324036,628.41,627.9,0.31860199]
[1771641143190,1.19324036,628.41,627.91,0.31860199]
[1771641143486,1.19324036,628.41,627.92,0.31860199]
[1771641143685,1.19324036,628.41,627.93,0.31860199]
[1771641143885,1.19324036,628.41,627.94,0.31860199]
[1771641144190,1.19324036,628.41,627.95,0.31860199]
[1771641144489,1.19324036,628.41,627.96,0.31860199]
[1771641144686,1.19324036,628.42,627.97,0.31860199]
[1771641144886,1.19324036,628.42,627.98,0.31860199]
[1771641145089,1.19324036,628.42,627.99,0.31860199]
[1771641145288,1.19324036,628.41,628.0,0.31860199]
[1771641145490,1.19324036,628.42,628.01,0.31860199]
[1771641145687,1.19324036,628.42,628.02,0.31860199]
[1771641145890,1.19324036,628.42,628.03,0.31860199]
[1771641146094,1.19324036,628.42,628.04,0.31860199]
[1771641146289,1.19324036,628.42,628.05,0.31860199]
[1771641146491,1.19324036,628.42,628.06,0.31860199]
[1771641146689,1.19324036,628.42,628.07,0.31860199]
[1771641146896,1.19324036,628.42,628.08,0.31860199]
[1771641147096,1.19324036,628.42,628.09,0.31860199]
[1771641147294,1.19324036,628.42,628.1,0.31860199]
[1771641147493,1.19324036,628.42,628.11,0.31860199]
[1771641147693,1.19324036,628.42,628.12,0.31860199]
[1771641147897,1.19324036,628.42,628.13,0.31860199]
[1771641148197,1.19324036,628.42,628.14,0.31860199]
[1771641148394,1.19324036,628.42,628.15,0.31860199]
[1771641148596,1.19324036,628.42,628.16,0.31860199]
[1771641148796,1.19324036,628.42,628.17,0.31860199]
[1771641148995,1.19324036,628.42,628.18,0.31860199]
[1771641149194,1.19324036,628.42,628.19,0.31860199]
[1771641149498,1.19324036,628.42,628.2,0.31860199]
[1771641149698,1.19324036,628.42,628.21,0.31860199]
[1771641149899,1.19324036,628.42,628.22,0.31860199]
[1771641150099,1.19324036,628.42,628.23,0.31860199]
[1771641150299,1.19324036,628.42,627.45,1.435]
[1771641150300,1.19324036,628.42,628.24,0.31860199]
[1771641150500,1.19324036,628.42,628.25,0.31860199]
[1771641150697,1.19324036,628.42,628.26,0.31860199]
[1771641150896,1.19324036,628.42,628.27,0.31860199]
[1771641151096,1.19324036,628.42,628.28,0.31860199]
[1771641151301,1.19324036,628.42,628.29,0.31860199]
[1771641151502,1.19324036,628.42,628.3,0.31860199]
[1771641151801,1.19324036,628.42,628.31,0.31860199]
[1771641151997,1.19324036,628.42,628.32,0.31860199]
[1771641152197,1.19324036,628.42,628.33,0.31860199]
[1771641152401,1.19324036,628.42,627.77,1.19285972]
[1771641152598,1.19324036,628.42,627.78,0.31860199]
[1771641152899,1.19324036,628.42,627.79,0.31860199]
[1771641153198,1.19324036,628.42,627.8,0.31860199]
[1771641153501,1.19324036,628.42,627.81,0.31860199]
[1771641153700,1.19324036,628.42,627.77,1.19285972]
[1771641153701,1.19324036,628.42,627.82,0.31860199]
[1771641153899,1.19324036,628.42,627.83,0.31860199]
[1771641154099,1.19324036,628.42,627.84,0.31860199]
[1771641154303,1.19324036,628.42,627.85,0.31860199]
[1771641154503,1.19324036,628.42,627.86,0.31860199]
[1771641154704,1.19324036,628.42,627.87,0.31860199]
[1771641154900,1.19324036,628.42,627.88,0.31860199]
[1771641155103,1.19324036,628.42,627.89,0.31860199]
[1771641155304,1.19324036,628.42,627.9,0.31860199]
[1771641155500,1.19324036,628.38,627.91,0.31860199]
[1771641155701,1.19324036,628.38,627.92,0.31860199]
[1771641156004,1.19324036,628.38,627.93,0.31860199]
[1771641156206,1.19324036,628.38,627.94,0.31860199]
[1771641156501,1.19324036,628.38,627.95,0.31860199]
[1771641156705,1.19324036,628.38,627.96,0.31860199]
[1771641156906,1.19324036,628.38,627.97,0.31860199]
[1771641157100,1.19324036,628.38,627.98,0.31860199]
[1771641157302,1.19324036,628.38,627.99,0.31860199]
[1771641157502,1.19324036,628.38,628.0,0.31860199]
[1771641157703,1.19324036,628.38,628.01,0.31860199]
[1771641157905,1.19324036,628.38,628.02,0.31860199]
[1771641158105,1.19324036,628.38,628.03,0.31860199]
[1771641158403,1.19324036,628.38,628.04,0.31860199]
[1771641158703,1.19324036,628.38,628.05,0.31860199]
[1771641158903,1.19324036,628.38,628.06,0.31860199]
[1771641159103,1.19324036,628.38,628.07,0.31860199]
[1771641159308,1.19324036,628.38,628.08,0.31860199]
[1771641159506,1.19324036,628.38,628.09,0.31860199]
[1771641159802,1.19324036,628.38,628.1,0.31860199]
[1771641160002,1.19324036,628.38,628.11,0.31860199]
[1771641160201,1.19324036,628.38,628.12,0.31860199]
[1771641160406,1.19324036,628.38,628.13,0.31860199]
[1771641160702,1.19324036,628.38,628.14,0.31860199]
[1771641160906,1.19324036,628.38,628.15,0.31860199]
[1771641161106,1.19324036,628.38,628.16,0.31860199]
[1771641161406,1.19324036,628.38,628.17,0.31860199]
[1771641161606,1.19324036,628.38,628.18,0.31860199]
[1771641161905,1.19324036,628.38,628.19,0.31860199]
[1771641162107,1.19324036,628.38,628.2,0.31860199]
[1771641162304,1.19324036,628.37,628.21,0.31860199]
[1771641162502,1.19324036,628.37,628.22,0.31860199]
[1771641162707,1.19324036,628.37,628.23,0.31860199]
[1771641162907,1.19324036,628.37,628.24,0.31860199]
[1771641163204,1.19324036,628.37,628.25,0.31860199]
[1771641163404,1.19324036,628.37,628.26,0.31860199]
[1771641163606,1.19324036,628.37,628.27,0.31860199]
[1771641163805,1.19324036,628.37,628.28,0.31860199]
[1771641164105,1.19324036,628.37,628.29,0.31860199]
[1771641164409,1.19324036,628.37,628.3,0.31860199]
[1771641164604,1.19324036,628.37,628.31,0.31860199]
[1771641164804,1.19324036,628.37,627.75,1.19285972]
[1771641165010,1.19324036,628.37,627.76,0.31860108]
[1771641165210,1.19324036,628.37,627.77,0.31860108]
[1771641165407,1.19324036,628.37,627.78,0.31860108]
[1771641165612,1.19324036,628.4,627.79,0.31860108]
[1771641165812,1.19324036,628.4,627.8,0.31860108]
[1771641166009,1.19324036,628.4,627.81,0.31860108]
[1771641166210,1.19324036,628.4,627.82,0.31860108]
[1771641166408,1.19324036,628.4,627.83,0.31860108]
[1771641166613,1.19324036,628.4,627.84,0.31860108]
[1771641166913,1.19324036,628.4,627.85,0.31860108]
[1771641167113,1.19324036,628.4,627.86,0.31860108]
[1771641167314,1.19324036,628.4,627.87,0.31860108]
[1771641167510,1.19324036,628.4,627.88,0.31860108]
[1771641167713,1.19324036,628.4,627.89,0.31860108]
[1771641168011,1.19324036,628.4,627.9,0.31860108]
[1771641168209,1.19324036,628.4,627.91,0.31860108]
[1771641168413,1.19324036,628.4,627.92,0.31860108]
[1771641168614,1.19324036,628.4,627.93,0.31860108]
[1771641168810,1.19324036,628.4,627.94,0.31860108]
[1771641169011,1.19324036,628.4,627.95,0.31860108]
[1771641169211,1.19324036,628.4,627.96,0.31860108]
[1771641169512,1.19324036,628.4,627.97,0.31860108]
[1771641169712,1.19324036,628.4,627.98,0.31860108]
[1771641169908,1.19324036,628.4,627.99,0.31860108]
[1771641170112,1.19324036,628.4,628.0,0.31860108]
[1771641170308,1.19324036,628.4,628.01,0.31860108]
[1771641170608,1.19324036,628.4,628.02,0.31860108]
[1771641170808,1.19324036,628.4,628.03,0.31860108]
[1771641171013,1.19324036,628.4,628.04,0.31860108]
[1771641171210,1.19324036,628.4,628.05,0.31860108]
[1771641171413,1.19324036,628.4,628.06,0.31860108]
[1771641171613,1.19324036,628.4,628.07,0.31860108]
[1771641171813,1.19324036,628.4,628.08,0.31860108]
[1771641172010,1.19324036,628.4,627.78,1.19285972]
[1771641172011,1.19324036,628.4,628.09,0.31860108]
[1771641172215,1.19324036,628.4,628.1,0.31860108]
[1771641172415,1.19324036,628.4,628.11,0.31860108]
[1771641172714,1.19324036,628.4,628.12,0.31860108]
[1771641172912,1.19324036,628.4,628.13,0.31860108]
[1771641173116,1.19324036,628.4,628.14,0.31860108]
[1771641173317,1.19324036,628.39,628.15,0.31860108]
[1771641173614,1.19324036,628.39,628.16,0.31860108]
[1771641173919,1.19324036,628.39,628.17,0.31860108]
[1771641174217,1.19324036,628.39,627.79,1.19285972]
[1771641174218,1.19324036,628.39,628.18,0.31860108]
[1771641174414,1.19324036,628.39,628.19,0.31860108]
[1771641174619,1.19324036,628.39,628.2,0.31860108]
[1771641174814,1.19324036,628.39,628.21,0.31860108]
[1771641175014,1.19324036,628.39,628.22,0.31860108]
[1771641175214,1.19324036,628.38,628.23,0.31860108]
[1771641175416,1.19324036,628.38,628.24,0.31860108]
[1771641175613,1.19324036,628.4,628.25,0.31860108]
[1771641175813,1.19324036,628.4,628.26,0.31860108]
[1771641176017,1.19324036,628.4,628.27,0.31860108]
[1771641176314,1.19324036,628.4,627.71,2.75065488]
[1771641176315,1.19324036,628.4,628.28,0.31860108]
[1771641176516,1.19324036,628.4,628.29,0.31860108]
[1771641176716,1.19324036,628.4,628.3,0.31860108]
[1771641176918,1.19324036,628.4,628.31,0.31860108]
[1771641177118,1.19324036,628.4,628.32,0.31860108]
[1771641177319,1.58385769,628.51,627.71,2.75065488]
[1771641177320,1.19324036,628.39,628.33,0.31860108]
[1771641177521,1.19324036,628.39,627.84,1.19285972]
[1771641177522,1.19324036,628.39,628.34,0.31860108]
[1771641177820,1.19324036,628.39,628.35,0.31860108]
[1771641178019,1.19324036,628.39,628.36,0.31860108]
[1771641178218,1.58385769,628.48,628.37,0.31860108]
[1771641178418,1.58385769,628.48,628.38,0.31860108]
[1771641178620,1.58385769,628.48,628.39,0.31860108]
[1771641178819,1.58385769,628.48,628.4,0.31860108]
[1771641179019,1.58385769,628.48,628.41,0.31860108]
[1771641179221,1.58385769,628.48,627.85,1.19285972]
[1771641179422,1.193898,628.37,627.86,0.31860092]
[1771641179623,1.193898,628.37,627.87,0.31860092]
[1771641179818,1.193898,628.37,627.88,0.31860092]
[1771641180022,1.193898,628.37,627.89,0.31860092]
[1771641180220,1.193898,628.37,627.9,0.31860092]
[1771641180418,1.193898,628.37,627.91,0.31860092]
[1771641180718,1.193898,628.37,627.92,0.31860092]
[1771641180919,1.193898,628.37,627.93,0.31860092]
[1771641181119,1.193898,628.37,627.94,0.31860092]
[1771641181322,1.193898,628.35,627.95,0.31860092]
[1771641181523,1.193898,628.35,627.96,0.31860092]
[1771641181722,1.193898,628.35,627.97,0.31860092]
[1771641181922,1.193898,628.35,627.98,0.31860092]
[1771641182121,1.193898,628.35,627.99,0.31860092]
[1771641182324,1.193898,628.34,628.0,0.31860092]
[1771641182524,1.193898,628.34,628.01,0.31860092]
[1771641182721,1.193898,628.34,628.02,0.31860092]
[1771641182920,1.193898,628.34,628.03,0.31860092]
[1771641183124,1.193898,628.34,628.04,0.31860092]
[1771641183320,1.193898,628.34,628.05,0.31860092]
[1771641183523,1.193898,628.34,628.06,0.31860092]
[1771641183721,1.193898,628.34,628.07,0.31860092]
[1771641183926,1.193898,628.34,628.08,0.31860092]
[1771641184121,1.193898,628.34,628.09,0.31860092]
[1771641184322,1.193898,628.34,628.1,0.31860092]
[1771641184626,1.193898,628.34,628.11,0.31860092]
[1771641184922,1.193898,628.34,628.12,0.31860092]
[1771641185222,1.193898,628.34,628.13,0.31860092]
[1771641185523,1.193898,628.34,628.14,0.31860092]
[1771641185723,1.193898,628.34,628.15,0.31860092]
[1771641185928,1.193898,628.34,628.16,0.31860092]
[1771641186126,1.193898,628.34,628.17,0.31860092]
[1771641186322,1.193898,628.35,628.18,0.31860092]
[1771641186626,1.193898,628.35,628.19,0.31860092]
[1771641186827,1.193898,628.35,628.2,0.31860092]
[1771641187026,1.193898,628.35,628.21,0.31860092]
[1771641187322,1.193898,628.35,628.22,0.31860092]
[1771641187628,1.193898,628.35,628.23,0.31860092]
[1771641187827,1.193898,628.35,628.24,0.31860092]
[1771641188127,1.193898,628.35,627.81,1.19285972]
[1771641188128,1.193898,628.35,628.25,0.31860092]
[1771641188325,1.193898,628.35,628.26,0.31860092]
[1771641188523,1.193898,628.35,628.27,0.31860092]
[1771641188726,1.193898,628.35,628.28,0.31860092]
[1771641188927,1.193898,628.35,628.29,0.31860092]
[1771641189129,1.193898,628.35,628.3,0.31860092]
[1771641189328,1.193898,628.35,628.31,0.31860092]
[1771641189630,1.193898,628.35,628.32,0.31860092]
[1771641189825,1.193898,628.35,628.33,0.31860092]
[1771641190129,1.193898,628.35,628.34,0.31860092]
[1771641195534,1.58385769,628.44,628.34,0.31860092]
[1771641195830,1.58385769,628.44,627.78,1.19285972]
[1771641196033,1.19301268,628.33,627.79,0.3186175]
[1771641196228,1.19301268,628.33,627.8,0.3186175]
[1771641196428,1.19301268,628.33,627.81,0.3186175]
[1771641196728,1.19301268,628.33,627.82,0.3186175]
[1771641196929,1.19301268,628.33,627.83,0.3186175]
[1771641197129,1.19301268,628.33,627.84,0.3186175]
[1771641197328,1.19301268,628.33,627.85,0.3186175]
[1771641197531,1.19301268,628.33,627.86,0.3186175]
[1771641197731,1.19301268,628.33,627.87,0.3186175]
[1771641197933,1.19301268,628.33,627.88,0.3186175]
[1771641198229,1.19301268,628.33,627.89,0.3186175]
[1771641198432,1.19301268,628.33,627.9,0.3186175]
[1771641198633,1.19301268,628.33,627.91,0.3186175]
[1771641198932,1.19301268,628.33,627.92,0.3186175]
[1771641199132,1.19301268,628.33,627.93,0.3186175]
[1771641199433,1.19301268,628.33,627.94,0.3186175]
[1771641199630,1.19301268,628.33,627.95,0.3186175]
[1771641199928,1.19301268,628.33,627.96,0.3186175]
[1771641200132,1.19301268,628.33,627.97,0.3186175]
[1771641200332,1.19301268,628.33,627.98,0.3186175]
[1771641200533,1.19301268,628.33,627.99,0.3186175]
[1771641200829,1.19301268,628.33,628.0,0.3186175]
[1771641201032,1.19301268,628.33,628.01,0.3186175]
[1771641201233,1.19301268,628.33,628.02,0.3186175]
[1771641201533,1.19301268,628.33,628.03,0.3186175]
[1771641201731,1.19301268,628.33,628.04,0.3186175]
[1771641202029,1.19301268,628.33,627.78,1.19285972]
[1771641202030,1.19301268,628.33,628.05,0.3186175]
[1771641202331,1.19301268,628.33,627.78,1.19285972]
[1771641202332,1.19301268,628.33,628.06,0.3186175]
[1771641202628,1.19301268,628.33,628.07,0.3186175]
[1771641202928,1.19301268,628.33,628.08,0.3186175]
[1771641203133,1.19301268,628.33,628.09,0.3186175]
[1771641203428,1.19301268,628.33,628.1,0.3186175]
[1771641203633,1.19301268,628.33,628.11,0.3186175]
[1771641203833,1.19301268,628.33,628.12,0.3186175]
[1771641204031,1.19301268,628.33,628.13,0.3186175]
[1771641204230,1.19301268,628.33,628.14,0.3186175]
[1771641204527,1.19301268,628.33,628.15,0.3186175]
[1771641204731,1.19301268,628.33,628.16,0.3186175]
[1771641204930,1.19301268,628.33,628.17,0.3186175]
[1771641205132,1.19301268,628.33,628.18,0.3186175]
[1771641205330,1.19301268,628.33,628.19,0.3186175]
[1771641205530,1.19301268,628.32,628.2,0.3186175]
[1771641205734,1.19301268,628.32,627.9,1.096]
[1771641205735,1.19301268,628.32,628.21,0.3186175]
[1771641205935,1.19301268,628.32,627.9,1.096]
[1771641205936,1.19301268,628.32,628.22,0.3186175]
[1771641206234,1.19301268,628.32,628.23,0.3186175]
[1771641206531,1.19301268,628.32,628.24,0.3186175]
[1771641206734,1.19301268,628.32,628.25,0.3186175]
[1771641206932,1.19301268,628.32,628.26,0.3186175]
[1771641207130,1.19301268,628.32,628.27,0.3186175]
[1771641207331,1.19301268,628.32,628.28,0.3186175]
[1771641207632,1.19301268,628.32,628.29,0.3186175]
[1771641207835,1.19301268,628.32,628.3,0.3186175]
[1771641208129,1.19301268,628.32,628.31,0.3186175]
[1771641210334,1.19301268,628.33,628.31,0.3186175]
[1771641210533,1.19301268,628.33,628.32,0.3186175]
[1771641211133,1.58385769,628.44,628.32,0.3186175]
[1771641211331,1.58385769,628.44,628.33,0.3186175]
[1771641211631,1.58385769,628.44,627.9,1.096]
[1771641211833,1.19299621,628.32,627.91,0.31861692]
[1771641212035,1.19299621,628.32,627.92,0.31861692]
[1771641212233,1.19299621,628.32,627.93,0.31861692]
[1771641212436,1.19299621,628.32,627.94,0.31861692]
[1771641212634,1.19299621,628.32,627.95,0.31861692]
[1771641212839,1.19299621,628.32,627.96,0.31861692]
[1771641213035,1.19299621,628.32,627.97,0.31861692]
[1771641213239,1.19299621,628.32,627.98,0.31861692]
[1771641213439,1.19299621,628.32,627.99,0.31861692]
[1771641213638,1.19299621,628.32,627.9,1.096]
[1771641213639,1.19299621,628.32,628.0,0.31861692]
[1771641213840,1.19299621,628.32,628.01,0.31861692]
[1771641214039,1.19299621,628.32,628.02,0.31861692]
[1771641214340,1.19299621,628.32,628.03,0.31861692]
[1771641214540,1.19299621,628.32,628.04,0.31861692]